fUST/lending_fUST_20251021
["ID","MTS","AMOUNT","RATE_DAILY","PERIOD"]
[391925041,1760997038552,-1000.0,0.000261,2]
[391925042,1760997038562,-1000.0,0.000261,2]
[391925043,1760997038575,-1000.0,0.000261,2]
[391925044,1760997038584,-1000.0,0.000261,2]
[391925045,1760997038594,-1000.0,0.000261,2]
[391925046,1760997038603,-1000.0,0.000261,2]
[391925047,1760997038612,-1000.0,0.000261,2]
[391925048,1760997038621,-500.0,0.00026199,2]
[391925049,1760997038631,-341.04432598,0.00026199,2]
[391925050,1760997038641,-500.0,0.000263,2]
[391925051,1760997038650,-199.0,0.00026301,11]
[391925052,1760997038659,-500.0,0.00026473,2]
[391925053,1760997038668,-1493.61,0.00026475,19]
[391925054,1760997038678,-199.0,0.00026475,12]
[391925055,1760997038688,-164.34,0.00026475,19]
[391925056,1760997038697,-164.34,0.00026475,19]
[391925057,1760997038707,-164.34,0.00026475,19]
[391925058,1760997038717,-164.34,0.00026475,19]
[391925059,1760997038726,-151.0,0.00026475,19]
[391925060,1760997038736,-151.0,0.00026475,2]
[391925061,1760997038745,-500.0,0.00026475,19]
[391925062,1760997038754,-500.0,0.00026475,19]
[391925063,1760997038764,-500.0,0.00026475,19]
[391925064,1760997038773,-250.0,0.00026484,2]
[391925065,1760997038783,-392.7178133,0.00026493,2]
[391925066,1760997038792,-574.12855637,0.0002652,2]
[391925067,1760997038802,-632.0,0.00026527,2]
[391925068,1760997038811,-999.443,0.00026527,2]
[391925069,1760997038820,-2163.0,0.00026527,2]
[391925070,1760997038830,-251.32,0.00026527,2]
[391925071,1760997038839,-4204.0,0.00026527,2]
[391925072,1760997038848,-151.0,0.0002653,19]
[391925073,1760997038858,-500.0,0.0002653,19]
[391925074,1760997038867,-500.0,0.0002653,19]
[391925075,1760997038876,-500.0,0.0002653,19]
[391925076,1760997038886,-5000.0,0.00026554,2]
[391925077,1760997038895,-260.0,0.00026562,2]
[391925078,1760997038905,-151.0,0.00026574,2]
[391925079,1760997038914,-151.0,0.00026574,2]
[391925080,1760997038923,-963.0,0.00026574,2]
[391925081,1760997038932,-151.0,0.00026574,2]
[391925082,1760997038942,-500.0,0.00026574,2]
[391925083,1760997038951,-151.0,0.00026574,2]
[391925084,1760997038960,-151.0,0.00026574,2]
[391925085,1760997038970,-420.0,0.00026574,2]
[391925086,1760997038979,-199.0,0.00026575,12]
[391925087,1760997038989,-151.0,0.00026585,19]
[391925088,1760997038999,-500.0,0.00026585,19]
[391925089,1760997039009,-500.0,0.00026585,19]
[391925090,1760997039019,-500.0,0.00026585,19]
[391925091,1760997039028,-151.0,0.00026629,2]
[391925092,1760997039038,-151.0,0.00026629,2]
[391925093,1760997039048,-963.0,0.00026629,2]
[391925094,1760997039058,-151.0,0.00026629,2]
[391925095,1760997039067,-500.0,0.00026629,2]
[391925096,1760997039077,-151.0,0.00026629,2]
[391925097,1760997039087,-151.0,0.00026629,2]
[391925098,1760997039098,-151.0,0.00026639,19]
[391925099,1760997039107,-500.0,0.00026639,19]
[391925100,1760997039117,-800.0,0.00026651,2]
[391925101,1760997039127,-800.0,0.00026669,2]
[391925102,1760997039136,-500.0,0.00026675,2]
[391925103,1760997039147,-500.0,0.00026675,2]
[391925104,1760997039157,-500.0,0.00026675,2]
[391925105,1760997039167,-500.0,0.00026675,2]
[391925106,1760997039177,-500.0,0.00026675,2]
[391925107,1760997039186,-500.0,0.00026675,2]
[391925108,1760997039423,-500.0,0.00026675,2]
[391925109,1760997039449,-500.0,0.00026675,2]
[391925110,1760997039459,-500.0,0.00026675,2]
[391925111,1760997039469,-500.0,0.00026675,2]
[391925112,1760997039478,-267.3428605,0.00026675,2]
[391925113,1760997039487,-159.91944295,0.00026675,2]
[391925114,1760997039497,-194.79187687,0.00026675,2]
[391925115,1760997039507,-449.46850233,0.00026675,2]
[391925116,1760997039516,-500.0,0.00026675,2]
[391925117,1760997039525,-400.77425864,0.00026675,2]
[391925118,1760997039535,-386.45282638,0.00026675,2]
[391925119,1760997039544,-500.0,0.00026675,2]
[391925120,1760997039553,-500.0,0.00026675,2]
[391925121,1760997039562,-508.19401681,0.00026675,2]
[391925122,1760997039575,-500.0,0.00026675,2]
[391925123,1760997039585,-363.23112031,0.00026676,2]
[391925124,1760997039594,-645.09846967,0.00026676,2]
[391925125,1760997039604,-450.16983443,0.00026676,2]
[391925126,1760997039613,-810.30570197,0.00026676,2]
[391925127,1760997039623,-1440.54347017,0.00026676,2]
[391925128,1760997039632,-739.699277,0.00026676,2]
[391925129,1760997039641,-425.68393778,0.0002668,4]
[391925130,1760997039651,-151.56260228,0.00026684,2]
[391925131,1760997039660,-151.0,0.00026684,2]
[391925132,1760997039669,-963.0,0.00026684,2]
[391925133,1760997039678,-151.0,0.00026684,2]
[391925134,1760997039688,-500.0,0.00026684,2]
[391925135,1760997039697,-198.0,0.00026684,2]
[391925136,1760997039707,-200.51114859,0.00026694,19]
[391925137,1760997039716,-294.96151405,0.00026694,19]
[391925138,1760997039726,-800.0,0.0002673,2]
[391925139,1760997039736,-800.0,0.00026735,2]
[391925141,1760997039745,-800.0,0.00026736,2]
[391925142,1760997039754,-296.64067041,0.00026738,2]
[391925143,1760997039764,-281.17174685,0.00026738,2]
[391925144,1760997039773,-963.0,0.00026738,2]
[391925145,1760997039782,-151.0,0.00026738,2]
[391925146,1760997039791,-500.0,0.00026738,2]
[391925147,1760997039801,-800.0,0.00026756,2]
[391925148,1760997039810,-800.0,0.00026762,2]
[391925150,1760997039819,-6083.33,0.0002677,10]
[391925152,1760997039829,-5069.44,0.0002677,10]
[391925153,1760997039838,-500.0,0.00026773,2]
[391925154,1760997039848,-500.0,0.00026773,2]
[391925155,1760997039858,-800.0,0.00026777,2]
[391925156,1760997039867,-4394.93786687,0.0002678,2]
[391925157,1760997039879,-6275.00593715,0.0002678,2]
[391925158,1760997039889,-963.0,0.00026793,2]
[391925159,1760997039898,-151.0,0.00026793,2]
[391925160,1760997039908,-500.0,0.00026793,2]
[391925161,1760997039917,-800.0,0.00026798,2]
[391925162,1760997039926,-376.32477349,0.00026799,2]
[391925163,1760997039935,-800.0,0.00026804,2]
[391925164,1760997039945,-270.23,0.00026818,3]
[391925165,1760997039954,-800.0,0.00026826,2]
[391925166,1760997039965,-49641.580469,0.00026828,2]
[391925167,1760997039974,-800.0,0.00026838,2]
[391925168,1760997039985,-800.0,0.00026838,2]
[391925169,1760997039995,-800.0,0.00026842,2]
[391925170,1760997040006,-827.82433594,0.00026843,2]
[391925171,1760997040015,-800.0,0.00026847,2]
[391925172,1760997040025,-359.0,0.00026847,2]
[391925173,1760997040034,-963.0,0.00026848,2]
[391925174,1760997040044,-245.0,0.00026848,2]
[391925175,1760997040055,-500.0,0.00026848,2]
[391925176,1760997040065,-199.0,0.00026849,13]
[391925177,1760997040074,-800.0,0.00026858,2]
[391925178,1760997040083,-516.90986039,0.00026861,2]
[391925179,1760997040093,-500.0,0.00026873,2]
[391925180,1760997040102,-500.0,0.00026873,2]
[391925181,1760997040111,-500.0,0.00026873,2]
[391925182,1760997040120,-500.0,0.00026873,2]
[391925183,1760997040130,-500.0,0.00026873,2]
[391925184,1760997040141,-505.02184591,0.00026873,2]
[391925185,1760997040150,-500.0,0.00026873,2]
[391925186,1760997040160,-500.0,0.00026873,2]
[391925187,1760997040170,-500.0,0.00026873,2]
[391925188,1760997040179,-214.65975848,0.00026873,2]
[391925189,1760997040188,-500.0,0.00026873,2]
[391925190,1760997040198,-500.0,0.00026873,2]
[391925191,1760997040208,-500.0,0.00026873,2]
[391925192,1760997040217,-500.0,0.00026873,2]
[391925194,1760997040227,-500.0,0.00026873,2]
[391925195,1760997040237,-500.0,0.00026873,2]
[391925196,1760997040246,-500.0,0.00026873,2]
[391925197,1760997040255,-500.0,0.00026873,2]
[391925198,1760997040265,-800.0,0.00026876,2]
[391925199,1760997040274,-165.54373036,0.00026879,2]
[391925200,1760997040284,-248207.902345,0.0002688,2]
[391925201,1760997040293,-500.0,0.0002688,5]
[391925202,1760997040302,-800.0,0.00026881,2]
[391925203,1760997040313,-500.0,0.0002689,2]
[391925204,1760997040322,-500.0,0.0002689,2]
[391925205,1760997040331,-500.0,0.0002689,2]
[391925206,1760997040341,-500.0,0.0002689,2]
[391925207,1760997040350,-500.0,0.0002689,2]
[391925208,1760997040361,-500.0,0.0002689,2]
[391925209,1760997040370,-500.0,0.0002689,2]
[391925210,1760997040380,-500.0,0.0002689,2]
[391925211,1760997040389,-153.899138,0.0002689,2]
[391925212,1760997040399,-370000.0,0.0002689,2]
[391925213,1760997040408,-800.0,0.00026893,2]
[391925214,1760997040419,-963.0,0.00026903,2]
[391925215,1760997040427,-500.0,0.00026903,2]
[391925216,1760997040437,-2248.59832297,0.00026912,2]
[391925217,1760997040446,-800.0,0.00026914,2]
[391925218,1760997040455,-963.0,0.00026958,2]
[391925219,1760997040465,-500.0,0.00026958,2]
[391925220,1760997040474,-369.10174341,0.00026973,2]
[391925221,1760997040484,-500.0,0.00026973,2]
[391925222,1760997040493,-500.0,0.00026973,2]
[391925223,1760997040502,-500.0,0.00026973,2]
[391925224,1760997040511,-570.82366199,0.00026973,2]
[391925225,1760997040521,-500.0,0.00026973,2]
[391925226,1760997040533,-500.0,0.00026973,2]
[391925227,1760997040544,-500.0,0.00026973,2]
[391925228,1760997040554,-597.40411846,0.00026973,2]
[391925229,1760997040564,-500.0,0.00026973,2]
[391925230,1760997040578,-502.79717437,0.00026973,2]
[391925231,1760997040587,-500.0,0.00026973,2]
[391925232,1760997040599,-500.0,0.00026973,2]
[391925233,1760997040610,-500.0,0.00026973,2]
[391925234,1760997040619,-503.62179262,0.00026973,2]
[391925235,1760997040631,-500.0,0.00026973,2]
[391925236,1760997040640,-158.45551666,0.00026973,2]
[391925237,1760997040652,-174.86420049,0.00026973,2]
[391925238,1760997040663,-500.0,0.00026973,2]
[391925239,1760997040679,-500.0,0.00026973,2]
[391925240,1760997040689,-158.45552811,0.00026973,2]
[391925241,1760997040698,-502.31522138,0.00026973,2]
[391925242,1760997040708,-160.05607692,0.00026973,2]
[391925243,1760997040719,-159.82220298,0.00026973,2]
[391925244,1760997040728,-500.0,0.00026973,2]
[391925245,1760997040738,-500.0,0.00026973,2]
[391925246,1760997040748,-500.0,0.00026973,2]
[391925247,1760997040757,-500.0,0.00026973,2]
[391925248,1760997040774,-500.0,0.00026973,2]
[391925249,1760997040787,-500.0,0.00026973,2]
[391925250,1760997040797,-6762.2500899,0.00026993,2]
[391925251,1760997040806,-26945.5616851,0.00026993,2]
[391925252,1760997040815,-3660.5202442,0.00026993,2]
[391925253,1760997040826,-530823.98270396,0.00027,2]
[391925254,1760997040836,-14265.92,0.00027,7]
[391925255,1760997040847,-151.0,0.00027,16]
[391925256,1760997040857,-151.0,0.00027,17]
[391925257,1760997040866,-151.0,0.00027,7]
[391925258,1760997040875,-151.0,0.00027,7]
[391925259,1760997040885,-151.0,0.00027,7]
[391925260,1760997040895,-195.017758,0.00027,7]
[391925261,1760997040906,-195.017758,0.00027,7]
[391925262,1760997040915,-195.017758,0.00027,7]
[391925263,1760997040924,-195.017758,0.00027,7]
[391925264,1760997040934,-151.0,0.00027,7]
[391925265,1760997040946,-151.0,0.00027,7]
[391925266,1760997040956,-151.0,0.00027,7]
[391925267,1760997040965,-151.0,0.00027,7]
[391925268,1760997040975,-151.0,0.00027,7]
[391925269,1760997040986,-151.0,0.00027,7]
[391925270,1760997040995,-151.0,0.00027,7]
[391925271,1760997041004,-151.0,0.00027,7]
[391925272,1760997041013,-151.0,0.00027,7]
[391925273,1760997041023,-336.625724,0.00027,2]
[391925274,1760997041033,-243.169452,0.00027,7]
[391925275,1760997041043,-229.459681,0.00027,2]
[391925276,1760997041052,-151.0,0.00027,7]
[391925277,1760997041062,-151.0,0.00027,7]
[391925278,1760997041071,-151.0,0.00027,7]
[391925279,1760997041081,-151.0,0.00027,19]
[391925280,1760997041091,-151.0,0.00027,10]
[391925281,1760997041101,-151.0,0.00027,7]
[391925282,1760997041111,-151.0,0.00027,7]
[391925283,1760997041121,-151.0,0.00027,7]
[391925284,1760997041131,-159.10792,0.00027,7]
[391925285,1760997041140,-151.0,0.00027,7]
[391925286,1760997041150,-964.968896,0.00027,7]
[391925287,1760997041161,-964.968896,0.00027,7]
[391925288,1760997041171,-1000.0,0.00027,2]
[391925289,1760997041182,-964.968896,0.00027,7]
[391925290,1760997041191,-744.84740603,0.00027,2]
[391925291,1760997041200,-964.968896,0.00027,7]
[391925292,1760997041209,-151.0,0.00027,7]
[391925293,1760997041219,-151.0,0.00027,7]
[391925294,1760997041229,-151.0,0.00027,7]
[391925295,1760997041238,-151.0,0.00027,7]
[391925296,1760997041249,-158.998876,0.00027,7]
[391925297,1760997041259,-158.998876,0.00027,7]
[391925298,1760997041269,-158.998876,0.00027,7]
[391925299,1760997041278,-158.998876,0.00027,7]
[391925300,1760997041287,-627.756314,0.00027,7]
[391925301,1760997041297,-152.094476,0.00027,7]
[391925302,1760997041308,-627.756314,0.00027,7]
[391925303,1760997041318,-627.756314,0.00027,7]
[391925304,1760997041329,-627.756314,0.00027,7]
[391925305,1760997041338,-1037.963748,0.00027,7]
[391925306,1760997041347,-1037.963748,0.00027,7]
[391925307,1760997041356,-1037.963748,0.00027,7]
[391925308,1760997041366,-1037.963748,0.00027,7]
[391925309,1760997041375,-292.577982,0.00027,7]
[391925310,1760997041384,-151.0,0.00027,7]
[391925311,1760997041394,-151.0,0.00027,7]
[391925312,1760997041403,-233.656997,0.00027,7]
[391925313,1760997041412,-233.656997,0.00027,7]
[391925314,1760997041421,-233.656997,0.00027,7]
[391925315,1760997041431,-233.656997,0.00027,7]
[391925316,1760997041440,-27618.89623649,0.00027,3]
[391925317,1760997041449,-151.0,0.00027,2]
[391925318,1760997041458,-151.0,0.00027,2]
[391925319,1760997041467,-196.84119169,0.00027,2]
[391925320,1760997041476,-380.0,0.00027,2]
[391925321,1760997041485,-963.0,0.00027012,2]
[391925322,1760997041495,-500.0,0.00027012,2]
[391925323,1760997041504,-963.0,0.00027067,2]
[391925324,1760997041513,-500.0,0.00027067,2]
[391925325,1760997041522,-595.37131296,0.00027068,2]
[391925326,1760997041532,-360.0,0.0002711,2]
[391925327,1760997041541,-963.0,0.00027122,2]
[391925328,1760997041550,-500.0,0.00027122,2]
[391925329,1760997041559,-199.0,0.00027123,14]
[391925330,1760997041570,-1007.7938946,0.00027123,3]
[391925331,1760997041581,-160.0,0.00027136,2]
[391925332,1760997041589,-160.0,0.00027136,2]
[391925333,1760997041598,-160.0,0.00027136,2]
[391925334,1760997041607,-402.9601108,0.00027136,2]
[391925335,1760997041617,-436.0,0.00027138,2]
[391925336,1760997041626,-160.0,0.00027148,2]
[391925337,1760997041635,-500.0,0.00027154,5]
[391925338,1760997041644,-963.0,0.00027177,2]
[391925339,1760997041653,-500.0,0.00027177,2]
[391925340,1760997041663,-6275.00593715,0.00027185,2]
[391925341,1760997041672,-212.107196,0.00027225,4]
[391925342,1760997041682,-273.43940139,0.00027225,4]
[391925343,1760997041691,-963.0,0.00027232,2]
[391925344,1760997041701,-190.30283314,0.00027272,2]
[391925345,1760997041711,-1825.0,0.00027282,2]
[391925346,1760997041720,-380.0,0.00027286,2]
[391925347,1760997041729,-963.0,0.00027286,2]
[391925348,1760997041739,-150.0,0.00027336,30]
[391925349,1760997041748,-963.0,0.00027341,2]
[391925350,1760997041757,-405.57,0.00027342,2]
[391925351,1760997041767,-153.0,0.00027343,2]
[391925352,1760997041777,-380.0,0.00027355,2]
[391925353,1760997041786,-150.269,0.00027361,2]
[391925354,1760997041795,-151.499,0.00027361,2]
[391925355,1760997041804,-262.513,0.00027361,2]
[391925356,1760997041814,-254.701,0.00027361,2]
[391925357,1760997041824,-294.101,0.00027361,2]
[391925358,1760997041833,-150.07,0.00027361,2]
[391925359,1760997041844,-600.0,0.00027385,30]
[391925360,1760997041855,-963.0,0.00027396,2]
[391925361,1760997041864,-199.0,0.00027397,15]
[391925362,1760997041874,-151.0,0.00027397,30]
[391925363,1760997041884,-151.782599,0.00027397,30]
[391925364,1760997041893,-154.08754,0.00027397,30]
[391925365,1760997041902,-154.08754,0.00027397,30]
[391925366,1760997041911,-154.08754,0.00027397,30]
[391925367,1760997041920,-154.08754,0.00027397,30]
[391925368,1760997041930,-411.60522101,0.00027399,2]
[391925369,1760997041940,-372.69610932,0.00027399,2]
[391925370,1760997041950,-685.21247534,0.00027421,5]
[391925371,1760997041959,-500.0,0.00027421,5]
[391925372,1760997041968,-1000.0,0.00027421,5]
[391925373,1760997041978,-1000.26549386,0.00027421,2]
[391925374,1760997041987,-573.69105529,0.00027421,5]
[391925375,1760997041997,-1000.0,0.00027421,5]
[391925376,1760997042007,-1000.0,0.00027421,5]
[391925377,1760997042016,-1000.0,0.00027421,5]
[391925378,1760997042026,-1000.0,0.00027421,5]
[391925379,1760997042038,-1000.0,0.00027421,5]
[391925380,1760997042050,-1000.0,0.00027421,5]
[391925381,1760997042059,-500.0,0.00027428,15]
[391925382,1760997042068,-963.0,0.00027451,2]
[391925383,1760997042078,-380.0,0.00027474,2]
[391925384,1760997042087,-1584.0,0.00027492,7]
[391925385,1760997042097,-13543.35366489,0.000275,2]
[391925386,1760997042106,-963.0,0.00027506,2]
[391925387,1760997042116,-591.8798605,0.00027521,5]
[391925388,1760997042125,-502.13746908,0.00027521,5]
[391925389,1760997042135,-520.34331837,0.00027521,5]
[391925390,1760997042144,-1110.37696371,0.00027521,2]
[391925391,1760997042154,-472.36268032,0.00027521,5]
[391925392,1760997042163,-1000.0,0.00027521,4]
[391925393,1760997042173,-1000.0,0.00027521,5]
[391925394,1760997042182,-335.50537354,0.00027521,5]
[391925395,1760997042192,-1000.0,0.00027521,5]
[391925396,1760997042203,-500.0,0.00027521,5]
[391925397,1760997042213,-290.67468229,0.00027521,5]
[391925398,1760997042223,-1000.0,0.00027521,5]
[391925399,1760997042233,-1000.0,0.00027521,5]
[391925400,1760997042243,-1000.0,0.00027521,5]
[391925401,1760997042253,-500.0,0.00027521,5]
[391925402,1760997042263,-500.0,0.00027521,5]
[391925403,1760997042272,-510.21036092,0.00027521,5]
[391925404,1760997042281,-1000.0,0.00027521,5]
[391925405,1760997042291,-963.0,0.0002756,2]
[391925406,1760997042300,-6495.08139675,0.0002759,2]
[391925407,1760997042309,-6275.00593715,0.0002759,2]
[391925408,1760997042319,-963.0,0.00027615,2]
[391925409,1760997042328,-617.40005154,0.00027616,2]
[391925410,1760997042337,-533.95320673,0.00027625,2]
[391925411,1760997042347,-460.0,0.00027658,2]
[391925412,1760997042356,-963.0,0.0002767,2]
[391925413,1760997042366,-199.0,0.00027671,16]
[391925414,1760997042376,-1825.0,0.00027689,2]
[391925415,1760997042387,-380.0,0.0002769,7]
[391925416,1760997042396,-500.0,0.00027702,15]
[391925417,1760997042407,-963.0,0.00027725,2]
[391925418,1760997042416,-963.0,0.00027779,2]
[391925419,1760997042426,-1613.7219823,0.000278,2]
[391925420,1760997042435,-978.79249431,0.00027834,2]
[391925421,1760997042444,-1825.0,0.00027873,7]
[391925422,1760997042454,-339.0,0.00027905,7]
[391925423,1760997042465,-1000.0,0.00027927,5]
[391925424,1760997042475,-495.827,0.00027935,18]
[391925425,1760997042484,-199.0,0.00027945,17]
[391925426,1760997042493,-1500.0,0.00027968,5]
[391925427,1760997042503,-1000.0,0.00027968,5]
[391925428,1760997042512,-1500.0,0.00027968,5]
[391925429,1760997042522,-1500.0,0.00027968,5]
[391925430,1760997042532,-335.9880288,0.00027968,5]
[391925431,1760997042541,-1500.0,0.00027968,5]
[391925432,1760997042550,-1500.0,0.00027968,5]
[391925433,1760997042559,-500.0,0.00027976,15]
[391925434,1760997042571,-6275.00593715,0.00027995,2]
[391925435,1760997042581,-446.88566852,0.00027999,2]
[391925436,1760997042590,-381.0,0.00027999,7]
[391925437,1760997042599,-153.0,0.00028046,2]
[391925438,1760997042608,-153.0,0.00028046,2]
[391925439,1760997042617,-153.0,0.00028046,2]
[391925440,1760997042626,-153.0,0.00028046,2]
[391925441,1760997042636,-153.0,0.00028046,2]
[391925442,1760997042647,-153.0,0.00028046,2]
[391925443,1760997042656,-153.0,0.00028046,2]
[391925444,1760997042665,-153.0,0.00028046,2]
[391925445,1760997042674,-153.0,0.00028046,2]
[391925446,1760997042684,-153.0,0.00028046,2]
[391925447,1760997042694,-153.0,0.00028046,2]
[391925448,1760997042703,-153.0,0.00028046,2]
[391925449,1760997042712,-153.0,0.00028046,2]
[391925451,1760997042723,-153.0,0.00028046,2]
[391925453,1760997042733,-153.0,0.00028046,2]
[391925455,1760997042743,-1500.0,0.00028068,5]
[391925456,1760997042755,-946.45912168,0.00028068,5]
[391925457,1760997042764,-1500.0,0.00028068,5]
[391925458,1760997042774,-1015.02448864,0.00028068,5]
[391925459,1760997042784,-1500.0,0.00028068,5]
[391925460,1760997042794,-1825.0,0.00028097,2]
[391925461,1760997042805,-14265.92,0.000281,7]
[391925462,1760997042814,-383.0,0.00028101,2]
[391925463,1760997042824,-4394.93786686,0.00028124,2]
[391925464,1760997042833,-380.0,0.00028138,2]
[391925465,1760997042842,-342.54509965,0.00028159,2]
[391925466,1760997042851,-640.24385345,0.00028164,2]
[391925467,1760997042861,-540.46,0.00028188,3]
[391925468,1760997042870,-413.86325079,0.00028188,2]
[391925469,1760997042880,-9206.28,0.000282,4]
[391925470,1760997042889,-560.0,0.00028206,2]
[391925471,1760997042898,-261.60819981,0.00028219,18]
[391925472,1760997042907,-1825.0,0.00028225,2]
[391925474,1760997042917,-380.0,0.00028243,2]
[391925476,1760997042926,-500.0,0.0002825,15]
[391925478,1760997042936,-380.0,0.0002826,2]
[391925480,1760997042945,-381.0,0.00028392,2]
[391925481,1760997042955,-6275.00593715,0.000284,2]
[391925482,1760997042965,-380.0,0.00028407,2]
[391925483,1760997042974,-150.0,0.00028473,5]
[391925484,1760997042983,-150.0,0.00028473,5]
[391925485,1760997042992,-150.0,0.00028473,5]
[391925486,1760997043002,-1929.25994067,0.00028498,7]
[391925487,1760997043012,-104533.54639617,0.000285,7]
[391925488,1760997043021,-34873.73092379,0.000285,7]
[391925489,1760997043034,-152.322127,0.000285,30]
[391925490,1760997043049,-151.0,0.000285,30]
[391925491,1760997043058,-151.0,0.000285,30]
[391925492,1760997043067,-151.0,0.000285,30]
[391925493,1760997043077,-195.017758,0.000285,30]
[391925494,1760997043086,-195.017758,0.000285,30]
[391925495,1760997043095,-195.017758,0.000285,30]
[391925496,1760997043105,-195.017758,0.000285,30]
[391925497,1760997043114,-151.0,0.000285,30]
[391925498,1760997043124,-151.0,0.000285,30]
[391925499,1760997043134,-151.0,0.000285,30]
[391925500,1760997043143,-181.355164,0.000285,30]
[391925501,1760997043154,-151.0,0.000285,30]
[391925502,1760997043163,-151.0,0.000285,30]
[391925503,1760997043173,-153.973046,0.000285,30]
[391925504,1760997043182,-151.0,0.000285,30]
[391925505,1760997043192,-151.0,0.000285,30]
[391925506,1760997043201,-151.0,0.000285,30]
[391925507,1760997043210,-151.0,0.000285,30]
[391925508,1760997043220,-153.329086,0.000285,30]
[391925509,1760997043229,-151.0,0.000285,30]
[391925510,1760997043238,-151.0,0.000285,30]
[391925511,1760997043425,-151.0,0.000285,30]
[391925512,1760997043435,-151.0,0.000285,30]
[391925513,1760997043444,-964.968896,0.000285,30]
[391925514,1760997043453,-964.968896,0.000285,30]
[391925515,1760997043462,-964.968896,0.000285,30]
[391925516,1760997043471,-964.968896,0.000285,30]
[391925517,1760997043481,-151.0,0.000285,30]
[391925518,1760997043490,-151.0,0.000285,30]
[391925519,1760997043499,-151.0,0.000285,30]
[391925520,1760997043508,-157.392733,0.000285,30]
[391925521,1760997043517,-158.998876,0.000285,30]
[391925522,1760997043526,-158.998876,0.000285,30]
[391925523,1760997043535,-158.998876,0.000285,30]
[391925524,1760997043544,-158.998876,0.000285,30]
[391925525,1760997043553,-627.756314,0.000285,30]
[391925526,1760997043562,-627.756314,0.000285,30]
[391925527,1760997043574,-627.756314,0.000285,30]
[391925528,1760997043583,-627.756314,0.000285,30]
[391925529,1760997043592,-1037.963748,0.000285,30]
[391925530,1760997043602,-1037.963748,0.000285,30]
[391925531,1760997043610,-1037.963748,0.000285,30]
[391925532,1760997043619,-1037.963748,0.000285,30]
[391925533,1760997043628,-154.08754,0.000285,30]
[391925534,1760997043637,-154.08754,0.000285,30]
[391925535,1760997043647,-154.08754,0.000285,30]
[391925536,1760997043656,-154.08754,0.000285,30]
[391925537,1760997043666,-151.0,0.000285,30]
[391925538,1760997043675,-151.0,0.000285,30]
[391925539,1760997043684,-233.656997,0.000285,30]
[391925540,1760997043693,-233.656997,0.000285,30]
[391925541,1760997043702,-233.656997,0.000285,30]
[391925542,1760997043711,-233.656997,0.000285,30]
[391925543,1760997043720,-948.30089515,0.00028512,2]
[391925544,1760997043729,-501.31810643,0.00028516,5]
[391925545,1760997043738,-2000.0,0.00028516,5]
[391925546,1760997043747,-2000.0,0.00028516,5]
[391925547,1760997043756,-1024.87285329,0.00028516,5]
[391925548,1760997043766,-2000.0,0.00028516,5]
[391925549,1760997043774,-500.0,0.00028524,15]
[391925550,1760997043783,-171.0,0.00028575,30]
[391925551,1760997043792,-482.16611604,0.00028599,2]